bitfinex/quotes_SOLUSD_20241111
["timestamp","ask_amount","ask_price","bid_price","bid_amount"]
[1731289752797,94.47244526,211.22,211.18,14.79102412]
[1731289753143,94.47244526,211.22,211.16,14.79102412]
[1731289753343,94.47244526,211.22,211.1,6.2445917]
[1731289753344,94.47244526,211.21,211.19,14.79102412]
[1731289753838,94.47244526,211.25,211.2,53.35893224]
[1731289754148,94.47244526,211.25,211.24,14.79102412]
[1731289754347,94.47244526,211.31,211.24,14.79102412]
[1731289754546,94.47244526,211.3,211.24,14.79102412]
[1731289754746,94.47244526,211.3,211.24,23.64470811]
[1731289755146,94.47244526,211.3,211.29,23.64470811]
[1731289755339,23.64470811,211.36,211.29,23.64470811]
[1731289755555,23.64470811,211.34,211.27,23.64470811]
[1731289755751,23.64470811,211.28,211.21,23.64470811]
[1731289755952,23.64470811,211.28,211.19,23.64470811]
[1731289756458,23.64470811,211.26,211.19,23.64470811]
[1731289757144,23.64470811,211.26,211.17,23.64470811]
[1731289757454,20.0,211.3,211.23,23.64470811]
[1731289757964,20.0,211.3,211.19,23.64470811]
[1731289757965,23.64470811,211.27,211.19,23.64470811]
[1731289758167,20.0,211.26,211.19,23.64470811]
[1731289758470,23.64470811,211.32,211.24,23.64470811]
[1731289758761,23.64470811,211.3,211.22,23.64470811]
[1731289761067,20.0,211.27,211.2,23.64470811]
[1731289761635,23.64470811,211.26,211.18,23.64470811]
[1731289761842,23.64470811,211.24,211.16,23.64470811]
[1731289762064,183.44470811,211.24,211.16,23.64470811]
[1731289763158,23.64470811,211.22,211.1,6.2445917]
[1731289763362,23.64470811,211.18,211.1,23.64470811]
[1731289763559,23.64470811,211.18,211.08,23.64470811]
[1731289763866,23.64470811,211.18,211.1,23.64470811]
[1731289765749,23.64470811,211.16,211.08,23.64470811]
[1731289765955,183.44470811,211.2,211.12,23.64470811]
[1731289766464,23.64470811,211.18,211.1,23.64470811]
[1731289767046,23.64470811,211.18,211.12,23.64470811]
[1731289767249,159.8,211.19,211.12,23.64470811]
[1731289767796,159.8,211.23,211.16,23.64470811]
[1731289767972,183.44470811,211.26,211.18,23.64470811]
[1731289770070,23.64470811,211.24,211.12,23.776884]
[1731289770278,23.64470811,211.24,211.15,23.64470811]
[1731289771464,23.64470811,211.22,211.13,23.64470811]
[1731289772050,23.64470811,211.22,211.15,23.64470811]
[1731289772879,159.8,211.21,211.15,23.64470811]
[1731289773775,23.64470811,211.2,211.13,23.64470811]
[1731289773962,23.64470811,211.2,211.11,23.64470811]
[1731289774166,159.8,211.19,211.15,23.64470811]
[1731289774675,159.8,211.19,211.1,20.0]
[1731289774864,159.8,211.19,211.12,14.79720704]
[1731289775059,159.8,211.19,211.14,14.79720704]
[1731289775462,159.8,211.19,211.16,14.79720704]
[1731289775667,159.8,211.18,211.15,23.776884]
[1731289775862,159.8,211.18,211.13,23.776884]
[1731289775863,159.8,211.18,211.17,14.79720704]
[1731289778763,14.79720704,211.24,211.17,14.79720704]
[1731289778964,159.8,211.23,211.17,14.79720704]
[1731289779170,159.8,211.23,211.13,23.776884]
[1731289779362,14.79720704,211.2,211.12,14.79720704]
[1731289779683,159.8,211.19,211.12,14.79720704]
[1731289780275,159.8,211.19,211.17,14.79720704]
[1731289780474,159.8,211.18,211.17,14.79720704]
[1731289780669,159.8,211.18,211.1,23.776884]
[1731289780868,159.8,211.17,211.15,14.79720704]
[1731289781068,159.8,211.16,211.15,14.79720704]
[1731289781388,159.8,211.16,211.15,38.57409104]
[1731289783078,159.8,211.16,211.15,14.79720704]
[1731289783677,159.8,211.16,211.13,14.79720704]
[1731289784586,159.8,211.15,211.13,14.79720704]
[1731289785587,4.734,211.24,211.05,20.4895]
[1731289785588,159.8,211.14,211.06,20.0]
[1731289785880,159.8,211.13,211.1,14.79720704]
[1731289786772,159.8,211.12,211.1,14.79720704]
[1731289788595,159.8,211.11,211.08,14.79720704]
[1731289789770,159.8,211.11,211.06,14.79720704]
[1731289791377,159.8,211.1,211.05,14.79720704]
[1731289791576,159.8,211.1,211.04,14.79720704]
[1731289792088,27.5046,211.33,211.12,0.1]
[1731289792269,37.56980704,211.33,211.24,14.79720704]
[1731289792470,22.7726,211.33,211.26,14.79720704]
[1731289792877,14.79720704,211.31,211.24,14.79720704]
[1731289793779,22.7726,211.33,211.28,14.79720704]
[1731289794006,14.79720704,211.37,211.3,14.79720704]
[1731289795502,14.79720704,211.37,211.28,14.79720704]
[1731289796976,14.79720704,211.35,211.28,14.79720704]
[1731289797411,14.79720704,211.35,211.26,14.79720704]
[1731289797703,14.79720704,211.33,211.24,14.79720704]
[1731289798779,14.79720704,211.33,211.26,14.79720704]
[1731289799578,14.79720704,211.28,211.21,14.79720704]
[1731289799783,14.79720704,211.28,211.11,0.1]
[1731289799784,159.8,211.27,211.2,14.79720704]
[1731289800301,14.79720704,211.23,211.16,14.79720704]
[1731289800610,159.8,211.22,211.1,6.2081]
[1731289800781,159.8,211.21,211.11,13.38898561]
[1731289801292,159.8,211.21,211.15,14.79720704]
[1731289801493,159.8,211.2,211.1,6.0081]
[1731289801700,159.8,211.19,211.18,14.79720704]
[1731289801910,14.79720704,211.25,211.18,14.79720704]
[1731289802208,174.59720704,211.24,211.17,14.79720704]
[1731289802405,159.8,211.24,211.18,14.79720704]
[1731289802586,174.59720704,211.24,211.17,14.79720704]
[1731289803800,174.59720704,211.24,211.12,23.776884]
[1731289803801,174.59720704,211.24,211.16,14.79720704]
[1731289804001,14.79720704,211.17,211.05,12.95915985]
[1731289804203,14.79720704,211.17,211.09,14.79720704]
[1731289804397,14.79720704,211.18,211.11,14.79720704]
[1731289804706,14.79720704,211.15,211.0,6.4722]
[1731289805016,14.79720704,211.16,211.09,14.79720704]
[1731289805819,14.79720704,211.15,211.08,14.79720704]
[1731289806121,159.8,211.17,211.12,14.79720704]
[1731289806816,159.8,211.17,211.11,14.79720704]
[1731289807516,159.8,211.17,211.12,14.79720704]
[1731289808209,14.79720704,211.16,211.03,23.776884]
[1731289808400,14.79720704,211.17,211.1,14.79720704]
[1731289808596,14.79720704,211.16,211.08,14.79720704]
[1731289808801,14.79720704,211.1,211.0,13.35395985]
[1731289808994,159.8,211.13,211.0,6.4722]
[1731289809317,14.79720704,211.12,211.04,14.79720704]
[1731289809693,174.59720704,211.13,211.05,14.79720704]
[1731289809895,159.8,211.12,211.09,14.79720704]
[1731289810719,159.8,211.12,211.1,14.79720704]
[1731289811012,159.8,211.11,211.09,14.79720704]
[1731289811218,14.79720704,211.22,211.1,14.79720704]
[1731289811402,159.8,211.22,211.17,14.79720704]
[1731289811597,159.8,211.24,211.19,14.79720704]
[1731289811993,15.0482,211.26,211.13,43.776884]
[1731289812207,29.84540704,211.26,211.19,14.79720704]
[1731289812705,14.79720704,211.24,211.15,14.79720704]
[1731289812913,23.66542144,211.23,211.15,23.66542144]
[1731289813105,23.66542144,211.24,211.16,23.66542144]
[1731289813409,23.66542144,211.24,211.17,23.66542144]
[1731289813618,23.66542144,211.22,211.15,23.66542144]
[1731289814203,159.8,211.21,211.13,23.66542144]
[1731289814407,183.46542144,211.2,211.13,23.66542144]
[1731289815107,183.46542144,211.2,211.12,23.66542144]
[1731289815302,23.66542144,211.23,211.15,23.66542144]
[1731289815502,159.8,211.25,211.2,23.66542144]
[1731289815814,159.8,211.25,211.09,23.66542144]
[1731289815815,159.8,211.26,211.18,23.66542144]
[1731289816019,23.66542144,211.25,211.18,23.66542144]
[1731289816221,159.8,211.26,211.19,23.66542144]
[1731289816530,159.8,211.26,211.2,23.66542144]
[1731289817116,0.1,211.31,211.1,45.8516538]
[1731289817117,159.8,211.25,211.23,23.66542144]
[1731289817308,174.8327,211.32,211.24,23.66542144]
[1731289818718,174.8327,211.32,211.2,23.66542144]
[1731289818719,23.66542144,211.36,211.28,23.66542144]
[1731289818917,23.66542144,211.34,211.26,23.66542144]
[1731289819117,23.66542144,211.33,211.26,23.66542144]
[1731289820004,23.66542144,211.33,211.2,23.66542144]
[1731289820211,23.66542144,211.31,211.24,23.66542144]
[1731289820819,23.66542144,211.3,211.22,23.66542144]
[1731289821006,23.66542144,211.28,211.2,23.66542144]
[1731289821210,23.66542144,211.27,211.19,23.66542144]
[1731289821411,23.66542144,211.25,211.18,23.66542144]
[1731289822201,183.66542144,211.31,211.14,6.5946]
[1731289822202,23.66542144,211.24,211.17,23.66542144]
[1731289822422,23.66542144,211.22,211.14,23.66542144]
[1731289822601,159.8,211.22,211.17,23.66542144]
[1731289822802,159.8,211.22,211.18,23.66542144]
[1731289823003,159.8,211.28,211.21,23.66542144]
[1731289823204,183.46542144,211.29,211.21,23.66542144]
[1731289823615,183.46542144,211.29,211.22,23.66542144]
[1731289824225,183.46542144,211.31,211.23,23.66542144]
[1731289824417,159.8,211.31,211.25,23.66542144]
[1731289825311,183.46542144,211.31,211.25,23.66542144]
[1731289825506,23.66542144,211.29,211.22,23.66542144]
[1731289825713,23.66542144,211.28,211.2,6.1303]
[1731289825910,159.8,211.31,211.23,23.66542144]
[1731289826236,183.46542144,211.31,211.24,23.66542144]
[1731289826522,183.46542144,211.31,211.23,23.66542144]
[1731289826523,23.66542144,211.3,211.23,23.66542144]
[1731289826828,159.8,211.31,211.26,23.66542144]
[1731289827123,159.8,211.31,211.21,20.0]
[1731289827124,159.8,211.35,211.28,23.66542144]
[1731289827706,159.8,211.36,211.28,23.66542144]
[1731289829303,159.8,211.36,211.3,23.66542144]
[1731289830129,159.8,211.37,211.3,23.66542144]
[1731289830326,159.8,211.37,211.26,23.66542144]
[1731289830327,23.66542144,211.33,211.26,23.66542144]
[1731289830641,23.66542144,211.33,211.2,36.67748129]
[1731289830642,23.66542144,211.31,211.22,23.66542144]
[1731289830813,23.66542144,211.29,211.2,29.79572144]
[1731289832122,23.66542144,211.27,211.18,23.66542144]
[1731289832325,23.66542144,211.25,211.18,23.66542144]
[1731289832631,159.8,211.24,211.18,23.66542144]
[1731289833214,159.8,211.24,211.21,23.66542144]
[1731289833617,159.8,211.24,211.23,23.66542144]
[1731289833925,159.8,211.3,211.23,23.66542144]
[1731289834638,23.66542144,211.29,211.21,23.66542144]
[1731289835123,23.66542144,211.28,211.21,23.66542144]
[1731289835631,23.66542144,211.29,211.21,23.66542144]
[1731289835806,23.66542144,211.27,211.19,23.66542144]
[1731289836006,23.66542144,211.25,211.19,23.66542144]
[1731289836412,23.66542144,211.26,211.18,23.66542144]
[1731289837614,23.66542144,211.23,211.15,6.0984]
[1731289837821,23.66542144,211.23,211.15,29.76382144]
[1731289838014,4.7331,211.28,211.16,23.66542144]
[1731289838015,23.66542144,211.24,211.16,23.66542144]
[1731289838216,23.66542144,211.22,211.15,23.66542144]
[1731289838437,159.8,211.23,211.16,23.66542144]
[1731289839121,159.8,211.23,211.19,23.66542144]
[1731289839325,159.8,211.23,211.2,23.66542144]
[1731289839534,159.8,211.23,211.19,23.66542144]
[1731289840929,159.8,211.26,211.19,23.66542144]
[1731289844723,23.66542144,211.25,211.17,23.66542144]
[1731289844935,14.78835385,211.24,211.16,14.78835385]
[1731289845325,14.78835385,211.2,211.12,14.78835385]
[1731289845531,159.8,211.19,211.12,14.78835385]
[1731289846118,159.8,211.19,211.14,14.78835385]
[1731289846341,14.78835385,211.22,211.14,14.78835385]
[1731289846342,159.8,211.18,211.14,14.78835385]
[1731289846637,159.8,211.18,211.12,14.78835385]
[1731289847425,159.8,211.18,211.1,6.55]
[1731289847426,159.8,211.18,211.11,14.78835385]
[1731289847620,159.8,211.18,211.1,14.78835385]
[1731289847621,174.58835385,211.18,211.1,14.78835385]
[1731289848037,174.58835385,211.17,211.1,14.78835385]
[1731289848238,159.8,211.16,211.09,14.78835385]
[1731289848638,174.58835385,211.16,211.08,14.78835385]
[1731289849328,174.58835385,211.16,211.09,14.78835385]
[1731289849944,159.8,211.16,211.1,14.78835385]
[1731289850820,159.8,211.16,211.14,14.78835385]
[1731289851242,159.8,211.19,211.14,14.78835385]
[1731289852443,159.8,211.19,211.12,14.78835385]
[1731289852627,174.58835385,211.19,211.12,14.78835385]
[1731289853535,159.8,211.19,211.12,14.78835385]
[1731289853732,14.78835385,211.18,211.11,14.78835385]
[1731289853926,159.8,211.19,211.13,14.78835385]
[1731289854127,14.78835385,211.18,211.11,14.78835385]
[1731289854441,14.78835385,211.18,211.1,14.78835385]
[1731289855223,174.58835385,211.17,211.1,14.78835385]
[1731289856340,174.58835385,211.17,211.05,6.0577]
[1731289856635,4.7354,211.18,211.05,6.0577]
[1731289856636,159.8,211.16,211.11,14.78835385]
[1731289856943,159.8,211.15,211.09,20.0]
[1731289857242,159.8,211.15,211.1,23.776884]
[1731289858346,159.8,211.15,211.14,14.78835385]
[1731289859345,6.6385,211.26,211.14,14.78835385]
[1731289859346,159.8,211.25,211.16,20.0]
[1731289859537,159.8,211.29,211.23,14.78835385]
[1731289859720,174.58835385,211.28,211.16,20.0]
[1731289859922,174.58835385,211.27,211.19,14.78835385]
[1731289860223,14.78835385,211.25,211.18,14.78835385]
[1731289860429,14.78835385,211.26,211.19,14.78835385]
[1731289860644,174.58835385,211.27,211.2,14.78835385]
[1731289860823,174.58835385,211.27,211.19,14.78835385]
[1731289861231,14.78835385,211.26,211.18,14.78835385]
[1731289861527,159.8,211.27,211.15,6.4181]
[1731289861528,174.58835385,211.27,211.19,14.78835385]
[1731289862426,174.58835385,211.27,211.21,14.78835385]
[1731289862726,159.8,211.26,211.21,14.78835385]
[1731289864026,159.8,211.26,211.23,14.78835385]
[1731289864227,159.8,211.29,211.25,14.78835385]
[1731289864545,14.78835385,211.27,211.2,14.78835385]
[1731289864722,174.58835385,211.26,211.19,14.78835385]
[1731289864928,159.8,211.26,211.2,14.78835385]
[1731289865128,159.8,211.26,211.22,14.78835385]
[1731289865323,159.8,211.25,211.16,20.0]
[1731289865534,159.8,211.24,211.2,14.78835385]
[1731289865944,159.8,211.23,211.18,14.78835385]
[1731289866246,159.8,211.23,211.2,14.78835385]
[1731289866438,159.8,211.23,211.21,14.78835385]
[1731289866632,159.8,211.22,211.2,14.78835385]
[1731289869151,159.8,211.22,211.21,14.78835385]
[1731289869451,159.8,211.28,211.21,14.78835385]
[1731289869647,159.8,211.27,211.23,14.78835385]
[1731289870752,159.8,211.27,211.21,14.78835385]
[1731289871249,174.58835385,211.26,211.19,14.78835385]
[1731289871637,174.58835385,211.26,211.11,0.1]
[1731289871638,159.8,211.26,211.21,14.78835385]
[1731289872157,159.8,211.26,211.22,14.78835385]
[1731289872651,159.8,211.26,211.2,14.78835385]
[1731289872878,159.8,211.26,211.19,14.78835385]
[1731289873444,14.78835385,211.27,211.19,14.78835385]
[1731289873445,159.8,211.25,211.19,14.78835385]
[1731289873648,159.8,211.25,211.2,14.78835385]
[1731289874550,159.8,211.25,211.22,14.78835385]
[1731289874735,159.8,211.25,211.12,23.776884]
[1731289874736,159.8,211.25,211.23,14.78835385]
[1731289875053,159.8,211.25,211.22,14.78835385]
[1731289875254,159.8,211.25,211.2,14.78835385]
[1731289875758,159.8,211.25,211.18,14.78835385]
[1731289875938,159.8,211.25,211.21,14.78835385]
[1731289876137,159.8,211.25,211.22,14.78835385]
[1731289876946,159.8,211.25,211.2,14.78835385]
[1731289877146,14.78835385,211.23,211.16,14.78835385]
[1731289877331,159.8,211.22,211.19,14.78835385]
[1731289877533,159.8,211.22,211.2,14.78835385]
[1731289878437,159.8,211.22,211.21,14.78835385]
[1731289878654,14.78835385,211.28,211.21,14.78835385]
[1731289878876,159.8,211.27,211.21,14.78835385]
[1731289879244,159.8,211.27,211.19,14.78835385]
[1731289879447,14.78835385,211.26,211.19,14.78835385]
[1731289881165,19.52185385,211.26,211.17,38.56523785]
[1731289881459,14.78835385,211.24,211.17,14.78835385]
[1731289882444,159.8,211.23,211.17,14.78835385]
[1731289882652,159.8,211.22,211.17,14.78835385]
[1731289882956,159.8,211.22,211.15,14.78835385]
[1731289884542,159.8,211.22,211.19,14.78835385]
[1731289885942,159.8,211.22,211.21,14.78835385]
[1731289887662,14.78835385,211.28,211.21,14.78835385]
[1731289887663,159.8,211.27,211.21,58.56523785]
[1731289887842,159.8,211.27,211.25,14.78835385]
[1731289888044,159.8,211.26,211.25,14.78835385]
[1731289888442,159.8,211.26,211.24,14.78835385]
[1731289888645,159.8,211.26,211.23,14.78835385]
[1731289888947,159.8,211.26,211.21,14.78835385]
[1731289889141,14.78835385,211.24,211.17,14.78835385]
[1731289889340,159.8,211.23,211.22,14.78835385]
[1731289889551,159.8,211.29,211.22,14.78835385]
[1731289889752,159.8,211.28,211.22,14.78835385]
[1731289893251,174.58835385,211.28,211.22,14.78835385]
[1731289893449,14.78835385,211.26,211.18,14.78835385]
[1731289893646,14.78835385,211.24,211.16,14.78835385]
[1731289893843,159.8,211.23,211.16,14.78835385]
[1731289894278,174.58835385,211.22,211.14,14.78835385]
[1731289894772,14.78835385,211.17,211.12,6.88175985]
[1731289894946,174.58835385,211.16,211.09,4.9129635]
[1731289895272,159.8,211.16,211.1,14.78835385]
[1731289895751,159.8,211.15,211.08,14.78835385]
[1731289895955,159.8,211.15,211.05,6.88175985]
[1731289895956,159.8,211.15,211.1,14.78835385]
[1731289896448,159.8,211.15,211.09,14.78835385]
[1731289896765,159.8,211.22,211.14,9.78835385]
[1731289897067,174.58835385,211.21,211.14,9.78835385]
[1731289897271,14.78835385,211.19,211.11,14.78835385]
[1731289897570,14.78835385,211.16,211.08,14.78835385]
[1731289897745,14.78835385,211.16,211.04,6.0396]
[1731289897746,159.8,211.15,211.1,14.78835385]
[1731289898577,159.8,211.15,211.09,14.78835385]
[1731289898871,174.58835385,211.15,211.07,14.78835385]
[1731289899366,14.78835385,211.11,211.02,15.239]
[1731289899570,159.8,211.1,211.07,14.78835385]
[1731289899877,14.78835385,211.12,211.05,14.78835385]
[1731289900172,14.78835385,211.11,211.04,14.78835385]
[1731289900463,14.78835385,211.09,210.99,6.3992]
[1731289900669,159.8,211.08,211.02,14.78835385]
[1731289901865,174.58835385,211.08,211.01,14.78835385]
[1731289902075,159.8,211.07,211.01,14.78835385]
[1731289902375,159.8,211.06,211.04,14.78835385]
[1731289902663,16.0076,211.16,210.99,20.0]
[1731289902664,159.8,211.05,210.99,20.0]
[1731289902893,159.8,211.15,211.0,6.88175985]
[1731289903169,174.58835385,211.14,211.07,14.78835385]
[1731289903471,159.8,211.13,211.07,14.78835385]
[1731289904564,159.8,211.12,211.09,14.78835385]
[1731289906279,159.8,211.12,211.01,35.3632]
[1731289906280,174.58835385,211.12,211.04,14.78835385]
[1731289906642,174.58835385,211.12,211.06,14.78835385]
[1731289906847,159.8,211.12,211.06,14.78835385]
[1731289908579,174.58835385,211.12,211.05,20.0]
[1731289908873,159.8,211.12,211.05,34.78835385]
[1731289909053,159.8,211.11,211.05,14.78835385]
[1731289910170,159.8,211.11,211.07,14.78835385]
[1731289910670,159.8,211.11,211.09,14.78835385]
[1731289912680,159.8,211.11,211.1,20.0]
[1731289915056,21.21445385,211.19,211.1,20.0]
[1731289915256,159.8,211.18,211.12,14.78835385]
[1731289915858,159.8,211.17,211.14,14.78835385]
[1731289917387,159.8,211.17,211.16,14.78835385]
[1731289917557,6.1353,211.24,211.16,14.78835385]
[1731289917760,159.8,211.23,211.16,14.78835385]
[1731289917979,15.1906,211.26,211.2,14.78835385]
[1731289917980,159.8,211.22,211.2,14.78835385]
[1731289919558,20.92365385,211.29,211.21,20.0]
[1731289919759,159.8,211.28,211.25,14.78835385]
[1731289920363,159.8,211.28,211.21,20.0]
[1731289920364,159.8,211.28,211.22,23.776884]
[1731289920962,159.8,211.28,211.23,14.78835385]
[1731289921178,14.78835385,211.26,211.19,14.78835385]
[1731289922180,159.8,211.28,211.19,14.78835385]
[1731289922181,14.78835385,211.27,211.19,14.78835385]
[1731289923092,159.8,211.28,211.22,23.776884]
[1731289923866,159.8,211.27,211.24,14.78835385]
[1731289924178,159.8,211.27,211.23,14.78835385]
[1731289924374,159.8,211.27,211.21,14.78835385]
[1731289924783,159.8,211.27,211.23,14.78835385]
[1731289924991,159.8,211.27,211.25,14.78835385]
[1731289925165,159.8,211.3,211.26,38.56523785]
[1731289925365,159.8,211.29,211.26,23.776884]
[1731289925562,159.8,211.35,211.28,23.776884]
[1731289925780,159.8,211.34,211.29,20.0]
[1731289925983,159.8,211.34,211.29,14.78835385]
[1731289926378,159.8,211.34,211.27,14.78835385]
[1731289926580,159.8,211.34,211.28,14.78835385]
[1731289926886,6.298,211.4,211.23,23.776884]
[1731289926887,159.8,211.33,211.32,20.0]
[1731289927096,159.8,211.36,211.33,23.776884]
[1731289927269,14.78835385,211.36,211.28,14.78835385]
[1731289927469,159.8,211.35,211.28,14.78835385]
[1731289927769,159.8,211.35,211.27,14.78835385]
[1731289927964,14.78835385,211.34,211.27,14.78835385]
[1731289928183,159.8,211.33,211.27,14.78835385]
[1731289928987,159.8,211.33,211.26,34.78835385]
[1731289929166,159.8,211.33,211.28,14.78835385]
[1731289929366,159.8,211.33,211.27,14.78835385]
[1731289929587,174.58835385,211.33,211.21,1.98098064]
[1731289929795,174.58835385,211.32,211.24,14.78835385]
[1731289929985,174.58835385,211.32,211.25,20.0]
[1731289930185,174.58835385,211.31,211.23,14.78835385]
[1731289930378,174.58835385,211.31,211.18,5.73306541]
[1731289930379,14.78835385,211.29,211.21,14.78835385]
[1731289930567,159.8,211.31,211.18,5.73306541]
[1731289930568,159.8,211.28,211.24,14.78835385]
[1731289930887,159.8,211.27,211.23,14.78835385]
[1731289931475,159.8,211.27,211.26,38.56523785]
[1731289931988,159.8,211.27,211.26,58.56523785]
[1731289932170,159.8,211.31,211.27,23.776884]
[1731289932790,159.8,211.31,211.3,14.78835385]
[1731289933090,6.1829,211.41,211.3,14.78835385]
[1731289933091,159.8,211.36,211.31,23.776884]
[1731289933390,14.78835385,211.41,211.33,14.78835385]
[1731289933391,159.8,211.35,211.33,14.78835385]
[1731289935669,159.8,211.4,211.34,43.776884]
[1731289935990,6.2908,211.5,211.39,14.78835385]
[1731289935991,14.78835385,211.47,211.39,14.78835385]
[1731289936293,14.78835385,211.45,211.37,14.78835385]
[1731289936887,14.78835385,211.41,211.34,23.776884]
[1731289937071,159.8,211.4,211.34,23.776884]
[1731289937391,14.78835385,211.37,211.3,23.776884]
[1731289937688,159.8,211.36,211.28,14.78835385]
[1731289937894,174.58835385,211.35,211.27,14.78835385]
[1731289938069,14.78835385,211.34,211.26,14.78835385]
[1731289938271,174.58835385,211.35,211.28,14.78835385]
[1731289938469,174.58835385,211.35,211.27,14.78835385]
[1731289938782,159.8,211.34,211.27,23.63657727]
[1731289938987,159.8,211.34,211.33,23.63657727]
[1731289939176,159.8,211.33,211.29,20.0]
[1731289939384,159.8,211.33,211.32,23.63657727]
[1731289940791,6.6156,211.45,211.34,20.0]
[1731289941003,159.8,211.4,211.39,23.63657727]
[1731289941298,15.4841,211.47,211.39,23.63657727]
[1731289941469,159.8,211.46,211.39,23.63657727]
[1731289941993,183.43657727,211.46,211.39,23.63657727]
[1731289943992,15.4841,211.47,211.32,18.14421146]
[1731289943993,159.8,211.45,211.32,16.1727]
[1731289944171,159.8,211.45,211.37,23.63657727]
[1731289944172,159.8,211.44,211.37,23.63657727]
[1731289944490,159.8,211.43,211.37,23.63657727]
[1731289944700,159.8,211.43,211.4,23.63657727]
[1731289944891,23.63657727,211.5,211.42,23.63657727]
[1731289945076,23.63657727,211.48,211.4,23.63657727]
[1731289946474,183.43657727,211.49,211.42,23.63657727]
[1731289948088,183.43657727,211.49,211.4,23.63657727]
[1731289949182,23.63657727,211.47,211.4,23.63657727]
[1731289949380,159.8,211.49,211.42,23.63657727]
[1731289949578,159.8,211.48,211.47,23.63657727]
[1731289949794,15.3049,211.52,211.45,23.63657727]
[1731289949985,23.63657727,211.51,211.45,23.63657727]
[1731289950295,23.63657727,211.48,211.4,23.63657727]
[1731289950482,159.8,211.47,211.4,23.63657727]
[1731289950992,183.43657727,211.47,211.4,23.776884]
[1731289951194,159.8,211.47,211.4,47.41346127]
[1731289951580,159.8,211.47,211.41,23.63657727]
[1731289951785,159.8,211.47,211.4,23.63657727]
[1731289952304,183.43657727,211.47,211.39,23.63657727]
[1731289952679,183.43657727,211.47,211.4,23.63657727]
[1731289952879,159.8,211.47,211.41,23.63657727]
[1731289953279,159.8,211.47,211.43,23.63657727]
[1731289953602,159.8,211.46,211.43,23.63657727]
[1731289953979,159.8,211.46,211.42,23.63657727]
[1731289954201,159.8,211.46,211.45,23.63657727]
[1731289954379,15.3049,211.52,211.45,23.63657727]
[1731289954702,159.8,211.51,211.46,23.63657727]
[1731289955888,159.8,211.51,211.45,23.63657727]
[1731289956197,159.8,211.51,211.38,20.0]
[1731289956198,23.63657727,211.5,211.42,23.63657727]
[1731289956706,159.8,211.51,211.45,23.63657727]
[1731289956897,23.63657727,211.5,211.43,23.63657727]
[1731289957289,188.16447727,211.51,211.44,23.63657727]
[1731289957491,183.43657727,211.51,211.44,23.63657727]
[1731289959002,23.63657727,211.5,211.43,23.63657727]
[1731289959208,23.63657727,211.47,211.4,23.776884]
[1731289959505,23.63657727,211.47,211.4,23.63657727]
[1731289959506,159.8,211.46,211.4,23.63657727]
[1731289960894,159.8,211.46,211.41,14.75633017]
[1731289961087,159.8,211.46,211.4,14.75633017]
[1731289961484,14.75633017,211.45,211.38,14.75633017]
[1731289961699,174.55633017,211.45,211.38,14.75633017]
[1731289962291,14.75633017,211.44,211.37,14.75633017]
[1731289962927,174.55633017,211.45,211.38,14.75633017]
[1731289963498,14.75633017,211.44,211.37,14.75633017]
[1731289963805,14.75633017,211.43,211.35,14.75633017]
[1731289963989,159.8,211.42,211.36,14.75633017]
[1731289964887,159.8,211.42,211.33,23.776884]
[1731289964888,159.8,211.42,211.39,14.75633017]
[1731289965410,159.8,211.42,211.38,14.75633017]
[1731289966308,159.8,211.42,211.39,14.75633017]
[1731289966492,159.8,211.42,211.4,14.75633017]
[1731289966802,159.8,211.41,211.4,14.75633017]
[1731289968506,159.8,211.41,211.4,38.53321417]
[1731289968713,159.8,211.5,211.41,23.776884]
[1731289969004,159.8,211.49,211.43,14.75633017]
[1731289970712,159.8,211.49,211.45,14.75633017]
[1731289971010,159.8,211.49,211.47,14.75633017]
[1731289971193,159.8,211.48,211.47,14.75633017]
[1731289971909,15.3049,211.52,211.47,14.75633017]
[1731289972293,15.3049,211.52,211.39,23.776884]
[1731289972294,15.3049,211.52,211.46,14.75633017]
[1731289973617,15.3049,211.52,211.47,14.75633017]
[1731289975290,15.3049,211.52,211.46,14.75633017]
[1731289975714,15.3049,211.52,211.47,14.75633017]